[Event "Coimbra Queima Fitas Open 2024"]
[Site "Coimbra"]
[Date "2024.04.25"]
[Round "2.14"]
[White "Paiva, Manuel Maria Fonseca"]
[Black "Monteiro, Paulo Alexandre Gome"]
[Result "1-0"]
[ECO "C05"]
[WhiteElo "1807"]
[BlackElo "2122"]
[Annotator "TA"]
[PlyCount "81"]
[EventDate "2024.04.23"]
[EventType "swiss"]
[EventCountry "POR"]
[SourceTitle "playchess.com"]
[Source "ChessBase"]
[SourceQuality "1"]
[TimeControl "5400+30"]

{[%evp 14,81,37,18,26,18,43,35,43,38,37,31,106,54,35,34,25,10,28,8,17,0,58,73,129,87,169,175,157,100,216,206,219,144,130,135,181,174,204,189,202,212,387,385,314,320,501,405,1737,1722,1683,1197,29990,29990,29991,29991,29991,29992,29992,5306,29993,29994,29994,29995,29995,29996,29996,29997,29997,29998]} 1. e4 {[%emt 0:00:20]} e6 {[%emt 0:00:28]} 2. d4 {[%emt 0:00:05]} d5 {[%emt 0:00:06]} 3. Nd2 {[%emt 0:00:08]} Nf6 {[%emt 0:00:25]} 4. e5 {[%emt 0:00:07]} Nfd7 {[%emt 0:00:08]} 5. Bd3 {[%emt 0:00:08]} c5 {[%emt 0:00:08]} 6. c3 {[%emt 0:00:03]} b6 {[%emt 0:00:10]} 7. Ne2 {[%emt 0:02:42]} Ba6 {[%emt 0:00:17]} 8. Bc2 {[%emt 0:01:33]} Nc6 {[%emt 0:03:48]} 9. Nf3 {[%emt 0:02:00]} Be7 {[%emt 0:04:01]} 10. O-O {[%emt 0:01:08]} O-O {[%emt 0:12:10] White is slightly better.} 11. Re1 {[%emt 0:00:51]} Rc8 {[%emt 0:02:35]} 12. Nf4 {[%emt 0:06:42]} b5 {[%emt 0:06:57]} ({Black should play} 12... Re8 $14) 13. a3 {[%emt 0:10:57] White is more active.} (13. Qd2 $16) 13... cxd4 $14 {[%emt 0:00:25]} 14. Qd3 {[%emt 0:06:33][%csl Gc2][%cal Rd3h7]} g6 {[%emt 0:00:23]} 15. cxd4 {[%emt 0:00:28]} (15. Nxd4 Ndxe5 (15... Ncxe5 16. Qh3 $15) 16. Qd1 Nxd4 17. Qxd4 Nc6 $17) 15... Qb6 $1 {[%emt 0:06:58]} 16. h4 {[%emt 0:05:15]} b4 {[%emt 0:01:13]} 17. Qd1 {[%emt 0:00:40]} Rfe8 {[%emt 0:11:56]} ({Black should try} 17... bxa3 $11 18. bxa3 Qd8) 18. Be3 $36 {[%emt 0:09:27][%mdl 2048] White is really pushing.} Nf8 {[%emt 0:02:08]} ({Better is} 18... bxa3 19. bxa3 Na5) 19. h5 {[%emt 0:06:05]} Rc7 {[%emt 0:02:27]} (19... Na5 $16 {was called for.}) 20. hxg6 {[%emt 0:00:52]} fxg6 {[%emt 0:00:32] [#]} 21. Nh2 $1 {[%emt 0:02:34][%cal Bf3h2,Bh2g4,Bg4f6][%mdl 32]} Nd8 {[%emt 0:08:34]} (21... Na5 $16 {was worth a try.}) 22. Ng4 {[%emt 0:04:23]} Nf7 {[%emt 0:00:56]} 23. Nf6+ {[%emt 0:03:31]} Bxf6 {[%emt 0:00:11]} 24. exf6 {[%emt 0:00:03]} Rec8 {[%emt 0:01:58] [#]} (24... Nd7 $16 25. Bxg6 hxg6) 25. Bb1 $1 $18 {[%emt 0:01:41]} bxa3 {[%emt 0:12:08]} 26. Rxa3 {[%emt 0:00:10]} Bc4 {[%emt 0:00:12]} 27. Qg4 {[%emt 0:06:19]} Qb4 $2 {[%emt 0:09:06]} (27... Nh8 28. Bd3 Qxb2) 28. Rc3 {[%emt 0:01:44]} Nh6 {[%emt 0:02:05]} 29. Qg5 {[%emt 0:03:59]} Nf5 {[%emt 0:01:05]} (29... Nf7 $142 30. Qg4 Nh6) 30. Bc1 {[%emt 0:02:00]} Bb5 {[%emt 0:04:09]} (30... Qb6 $142 31. Bxf5 exf5) 31. Bxf5 {[%emt 0:04:56][%cal Rf4g6] Intending Nxg6! and mate.} (31. Nxe6 Rxc3 (31... Nxe6 $2 32. Rxe6 Rxc3 33. Bd2 $18) 32. Bd2 (32. Bxf5 Rg3 $16) 32... h6 $18 (32... Nxd4 $2 33. Nxd4 Qxd4 34. bxc3 $18) (32... Nxe6 $2 33. Rxe6 Qxd4 34. Bxc3 $18)) 31... Rxc3 {[%emt 0:01:41]} 32. Bd2 {[%emt 0:08:27]} (32. Bxe6+ Nxe6 33. bxc3 (33. Nxe6 R3c6 $18) 33... Nxg5 $18) (32. Nxe6 Rg3 (32... Rxc1 $2 33. Rxc1 h6 34. Bxg6 $18) 33. f7+ (33. fxg3 $2 Qxe1+ 34. Kh2 Rxc1 $19) 33... Kxf7 $16) 32... Qxb2 {[%emt 0:05:33]} 33. Nxg6 {[%emt 0:00:24]} hxg6 {[%emt 0:01:03]} 34. Bxe6+ {[%emt 0:00:40]} Nxe6 {[%emt 0:00:43]} 35. Qxg6+ {[%emt 0:00:06]} ({Less strong is} 35. Rxe6 Qb1+ 36. Re1 Qf5 37. f7+ Kxf7 (37... Qxf7 38. Bxc3 Qf5 39. Qg3 $16) 38. Qe7+ Kg8 39. Bxc3 Qd7 $16 (39... Rxc3 40. Qd8+ Qf8 41. Qxd5+ Kg7 42. Qxb5 $18)) 35... Kh8 {[%emt 0:00:42]} 36. Qh6+ {[%emt 0:03:19]} Kg8 {[%emt 0:00:08]} 37. f7+ {[%emt 0:00:03] White mates.} Kxf7 {[%emt 0:00:09]} 38. Qxe6+ {[%emt 0:00:04]} Kg7 {[%emt 0:00:27]} 39. Bh6+ {[%emt 0:00:04]} Kh7 {[%emt 0:00:15]} 40. Qf7+ {[%emt 0:00:50]} Kxh6 {[%emt 0:00:08]} 41. Qf6+ {[%emt 0:00:32] Weighted Error Value: White=0.08 (flawless) /Black=0.58.  Mistake:       	White=1     	Black=9      Inaccurate:     	White=2     	---        OK:         	White=10    	Black=6      Best:        	White=1     	Black=2      Strong:       	White=1     	Black=1} 1-0

[Event "Coimbra Queima Fitas Open 2024"]
[Site "Coimbra"]
[Date "2024.04.25"]
[Round "2.15"]
[White "Gama, Edivaldo Pereira Da"]
[Black "Bittner, Titus Teodor"]
[Result "1-0"]
[ECO "B20"]
[WhiteElo "2109"]
[BlackElo "1785"]
[Annotator "TA"]
[PlyCount "145"]
[EventDate "2024.04.23"]
[EventType "swiss"]
[EventCountry "POR"]
[SourceTitle "playchess.com"]
[Source "ChessBase"]
[SourceQuality "1"]
[TimeControl "5400+30"]

{[%evp 9,145,-75,-66,-72,-69,-70,-74,-72,-74,-84,-64,-59,-35,-41,-49,-72,-29,-18,-33,-37,-10,-20,-9,-29,11,0,20,0,25,43,31,11,10,7,18,-20,-34,-40,-40,-46,-33,-156,-14,-135,-6,-12,0,0,0,-12,0,0,0,0,36,-16,0,-60,-63,-62,0,-39,0,0,0,-8,0,0,0,0,0,0,8,8,8,8,8,8,8,8,25,0,0,0,0,0,0,0,0,0,0,0,0,0,0,0,0,0,0,0,29978,29979,29979,29980,29979,29981,29981,29982,29983,29984,29985,29982,29985,29986,29986,29987,29989,29984,29986,29987,29988,29989,29988,29986,29986,29987,29987,29988,29990,29991,29995,29996,29996,29997,29997,29998,29998,29999]} 1. e4 {[%emt 0:00:04]} c5 {[%emt 0:00:07]} 2. Bc4 {[%emt 0:00:09]} Nc6 {[%emt 0:00:41]} 3. Nf3 {[%emt 0:01:06]} g6 {[%emt 0:00:25]} 4. h4 {[%emt 0:00:20]} Nf6 {[%emt 0:12:26]} 5. e5 {[%emt 0:01:44]} d5 6. exd6 {[%emt 0:03:00]} Qxd6 {[%emt 0:02:16]} ({Don't play} 6... exd6 7. O-O $15) 7. Ng5 {[%emt 0:01:18]} Ne5 {[%emt 0:05:13]} 8. Bb5+ {[%emt 0:00:30] Black is better.} Bd7 {[%emt 0:03:33]} 9. Qe2 {[%emt 0:01:03]} Bxb5 {[%emt 0:03:39]} 10. Qxb5+ {[%emt 0:00:05]} Qc6 {[%emt 0:00:30]} 11. Qxc6+ {[%emt 0:00:30]} Nxc6 {[%emt 0:00:30]} 12. Nc3 {[%emt 0:01:02]} a6 {[%emt 0:05:09]} 13. d3 {[%emt 0:01:37]} Nd4 {[%emt 0:04:35]} 14. Kd1 {[%emt 0:01:44]} Bg7 {[%emt 0:05:14][%cal Oc5c4]} 15. Nce4 {[%emt 0:00:30]} Nxe4 {[%emt 0:02:48]} 16. Nxe4 {[%emt 0:00:17][%cal Oc2c3]} Rc8 {[%emt 0:03:32]} 17. c3 {[%emt 0:00:50]} Ne6 {[%emt 0:01:40]} 18. Ng5 {[%emt 0:02:10]} Nxg5 {[%emt 0:02:13]} 19. hxg5 {[%emt 0:00:30]} f6 {[%emt 0:07:13]} 20. gxf6 {[%emt 0:01:51]} exf6 {[%emt 0:02:06]} 21. g4 {[%emt 0:00:57]} O-O {[%emt 0:01:58]} 22. Rh3 {[%emt 0:01:50]} f5 {[%emt 0:01:07]} 23. gxf5 {[%emt 0:00:30]} Rxf5 {[%emt 0:00:24]} 24. Be3 {[%emt 0:00:38]} Be5 {[%emt 0:04:34]} 25. Rh4 {[%emt 0:01:32] [#]} (25. Ke2 $15) 25... b6 {[%emt 0:01:27]} (25... Bg3 $1 $17 {[%cal Rg3h4]} 26. Rc4 (26. fxg3 $2 {too greedy.} Rf1+ 27. Kc2 Rxa1 $19) 26... Bxf2) 26. a4 {[%emt 0:00:38] [#]} (26. Ke2 $11 {keeps the balance.}) 26... a5 {[%emt 0:01:24]} (26... Bg3 $1 $17 {[%cal Rg3h4]} 27. Re4 (27. fxg3 $2 {perishes.} Rf1+ 28. Kc2 Rxa1 $19) 27... Bxf2) 27. Ke2 $1 $11 {[%emt 0:00:27]} Re8 {[%emt 0:01:45]} 28. Re4 {[%emt 0:00:43]} Re7 {[%emt 0:02:19]} 29. Rd1 {[%emt 0:04:26]} Bd6 {[%emt 0:07:52]} 30. Rxe7 {[%emt 0:01:51]} Bxe7 {[%emt 0:00:02][%mdl 4096] Endgame. KRB-KRB} 31. d4 {[%emt 0:00:01]} g5 {[%emt 0:01:53]} 32. Rg1 {[%emt 0:03:05]} (32. Kd3 $14) 32... Kf7 {[%emt 0:01:26]} 33. Kd3 {[%emt 0:01:06]} ({White should try} 33. dxc5 $11 bxc5 34. Rh1) 33... h5 $15 {[%emt 0:02:59]} 34. Ke4 {[%emt 0:00:54]} Ke6 {[%emt 0:01:45]} (34... Kg6 $1 $15) 35. Rd1 {[%emt 0:00:53]} cxd4 {[%emt 0:01:18]} 36. cxd4 {[%emt 0:00:02]} Rd5 {[%emt 0:01:15]} 37. f4 {[%emt 0:02:06]} gxf4 {[%emt 0:00:54]} 38. Bxf4 {[%emt 0:00:09]} h4 {[%emt 0:01:29]} 39. Rc1 {[%emt 0:07:04] Black must now prevent Rc6+.} Rh5 $1 {[%emt 0:08:16]} 40. Rc6+ {[%emt 0:00:42]} Kd7 {[%emt 0:00:00]} 41. Rxb6 {[%emt 0:00:01]} h3 {[%emt 0:00:47]} 42. Bh2 {[%emt 0:01:58]} Bd8 {[%emt 0:01:06]} 43. Rg6 {[%emt 0:01:19]} Rh4+ {[%emt 0:00:21]} 44. Ke3 {[%emt 0:00:24]} Be7 {[%emt 0:00:52]} 45. d5 {[%emt 0:02:05]} Bc5+ 46. Kf3 {[%emt 0:00:02]} Rxa4 {[%emt 0:01:14]} 47. Rg7+ {[%emt 0:00:09]} Ke8 {[%emt 0:00:24]} 48. Be5 {[%emt 0:02:10]} Bd4 {[%emt 0:00:39]} 49. Rg4 {[%emt 0:01:03]} h2 $1 {[%emt 0:00:45]} 50. Bxh2 {[%emt 0:07:41] And now Bg1 would win.} Rb4 {[%emt 0:00:17]} 51. d6 {[%emt 0:01:29]} Bxb2 {[%emt 0:00:16] ( -> ...Rxg4)} 52. Rg8+ {[%emt 0:00:14]} Kd7 {[%emt 0:00:13]} 53. Ra8 {[%emt 0:00:17]} a4 {[%emt 0:01:03]} 54. Ra7+ {[%emt 0:00:24]} Kc8 $2 {[%emt 0:00:13][%mdl 8192] White now steadily converts the win.} (54... Ke6 $11) 55. d7+ {[%emt 0:00:28] White mates.} Kd8 {[%emt 0:00:09]} 56. Bc7+ {[%emt 0:00:09]} Kxd7 {[%emt 0:00:01]} 57. Ba5+ {[%emt 0:00:01]} Kc6 {[%emt 0:00:11]} 58. Bxb4 {[%emt 0:00:28]} Kb5 {[%emt 0:00:01]} 59. Bf8 {[%emt 0:03:33]} Bd4 {[%emt 0:00:02]} 60. Rb7+ {[%emt 0:00:30]} Bb6 {[%emt 0:00:24]} 61. Ke4 {[%emt 0:00:52]} Kc6 {[%emt 0:00:13]} 62. Rh7 {[%emt 0:00:34]} Kb5 {[%emt 0:00:07]} 63. Kd3 {[%emt 0:00:15]} Ba5 {[%emt 0:00:14]} 64. Rh5+ {[%emt 0:00:16]} Ka6 {[%emt 0:00:01]} 65. Kc4 {[%emt 0:00:20]} Bb6 {[%emt 0:00:32]} 66. Kb4 {[%emt 0:00:06]} a3 {[%emt 0:00:25]} 67. Kxa3 {[%emt 0:00:03]} Kb7 {[%emt 0:00:07]} 68. Kb4 {[%emt 0:01:37]} Bc7 {[%emt 0:00:14]} 69. Kb5 Kc8 70. Kc6 Bd8 71. Rh8 Kb8 72. Bd6+ Ka7 73. Rxd8 {Weighted Error Value: White=0.16 (very precise) /Black=0.27 (precise) .  Loses game:     	---       	Black=1      Mistake:       	White=4     	Black=3      Inaccurate:     	White=2     	Black=5      OK:         	White=18    	Black=10     Best:        	White=1     	Black=3      Strong:       	White=1     	Black=2} 1-0

[Event "Coimbra Queima Fitas Open 2024"]
[Site "Coimbra"]
[Date "2024.04.25"]
[Round "2.16"]
[White "Ferreira, Vasco Capitao Mendes"]
[Black "Novais, Carlos Joao Fernande"]
[Result "0-1"]
[ECO "C74"]
[WhiteElo "1802"]
[BlackElo "2101"]
[Annotator "RC"]
[PlyCount "70"]
[EventDate "2024.04.23"]
[EventType "swiss"]
[EventCountry "POR"]
[SourceTitle "playchess.com"]
[Source "ChessBase"]
[SourceQuality "1"]
[TimeControl "5400+30"]

1. e4 e5 2. Nf3 Nc6 3. Bb5 a6 4. Ba4 d6 5. c3 f5 6. d3 Nf6 7. Nbd2 Be7 8. Qe2 O-O 9. Bb3+ Kh8 10. h3 d5 11. O-O Nh5 12. exd5 Nf4 13. Qd1 Nxd5 14. Nc4 Bf6 15. Re1 Re8 16. h4 b5 17. Ng5 Re7 18. Ne3 Nf4 19. Nf7+ Rxf7 20. Bxf7 Qd7 21. Bb3 Bb7 22. Nf1 Nxg2 23. Kxg2 Nd4+ 24. f3 Nxf3 25. Qxf3 Bxf3+ 26. Kxf3 Qxd3+ 27. Ne3 e4+ 28. Kg2 f4 29. Bc2 f3+ 30. Kg1 Bxh4 31. Rf1 Qd6 32. Bxe4 Qg3+ 33. Kh1 Rf8 34. Bf5 Rxf5 35. Rd1 Qh3+ 0-1

[Event "Coimbra Queima Fitas Open 2024"]
[Site "Coimbra"]
[Date "2024.04.25"]
[Round "2.17"]
[White "Vasconcelos, Paulo Jorge Lopes De"]
[Black "Goncalves, Carlos Manuel Marque"]
[Result "1-0"]
[ECO "B12"]
[WhiteElo "2093"]
[BlackElo "1781"]
[Annotator "NA RC"]
[PlyCount "47"]
[EventDate "2024.04.23"]
[EventType "swiss"]
[EventCountry "POR"]
[SourceTitle "playchess.com"]
[Source "ChessBase"]
[SourceQuality "1"]
[TimeControl "5400+30"]

1. e4 {[%emt 0:00:04]} c6 {[%emt 0:00:00]} 2. d4 {[%emt 0:00:11]} d5 {[%emt 0:00:00]} 3. e5 {[%emt 0:00:13]} c5 {[%emt 0:00:24]} 4. dxc5 {[%emt 0:00:06]} Nc6 {[%emt 0:01:19]} 5. f4 {[%emt 0:00:34]} e6 {[%emt 0:00:41]} 6. Be3 {[%emt 0:01:35]} Qa5+ {[%emt 0:00:39]} 7. c3 {[%emt 0:10:01]} d4 {[%emt 0:00:19]} 8. b4 {[%emt 0:09:17]} Nxb4 {[%emt 0:03:43]} 9. cxb4 {[%emt 0:00:09]} Qxb4+ {[%emt 0:00:02]} 10. Qd2 {[%emt 0:00:39]} Bxc5 {[%emt 0:03:14]} 11. Qxb4 {[%emt 0:01:07]} Bxb4+ {[%emt 0:00:02]} 12. Bd2 {[%emt 0:00:19]} Bxd2+ {[%emt 0:00:56]} 13. Nxd2 {[%emt 0:00:10]} Bd7 {[%emt 0:00:26]} 14. Ngf3 {[%emt 0:02:49]} Ne7 {[%emt 0:00:23]} 15. Nxd4 {[%emt 0:00:52]} Nd5 {[%emt 0:00:20]} 16. g3 {[%emt 0:00:30]} O-O {[%emt 0:01:38]} 17. Ne4 {[%emt 0:03:28]} f6 {[%emt 0:03:34]} 18. Nd6 {[%emt 0:01:01]} fxe5 {[%emt 0:00:23]} 19. fxe5 {[%emt 0:00:09]} Ne7 {[%emt 0:05:06]} 20. Bc4 {[%emt 0:15:38]} Ng6 {[%emt 0:03:13]} 21. Nxe6 {[%emt 0:02:36]} Nxe5 {[%emt 0:00:04]} 22. Nxf8+ {[%emt 0:01:04]} Nxc4 {[%emt 0:00:02]} 23. Nxd7 {[%emt 0:00:59]} Nxd6 {[%emt 0:00:08]} 24. O-O {[%emt 0:02:44]} 1-0

[Event "Coimbra Queima Fitas Open 2024"]
[Site "Coimbra"]
[Date "2024.04.25"]
[Round "2.18"]
[White "Frutuoso, Tiago Oliveira Marti"]
[Black "Simoes, Miguel Caldeira"]
[Result "0-1"]
[ECO "C95"]
[WhiteElo "1799"]
[BlackElo "2084"]
[Annotator "NA RC"]
[PlyCount "116"]
[EventDate "2024.04.23"]
[EventType "swiss"]
[EventCountry "POR"]
[SourceTitle "playchess.com"]
[Source "ChessBase"]
[SourceQuality "1"]
[TimeControl "5400+30"]

1. e4 {[%emt 0:00:06]} e5 {[%emt 0:01:33]} 2. Nf3 {[%emt 0:00:12]} Nc6 {[%emt 0:00:23]} 3. Bb5 {[%emt 0:00:31]} a6 {[%emt 0:00:11]} 4. Ba4 {[%emt 0:00:16]} Nf6 {[%emt 0:00:19]} 5. O-O {[%emt 0:00:17]} Be7 {[%emt 0:00:59]} 6. Re1 {[%emt 0:00:11]} b5 {[%emt 0:00:07]} 7. Bb3 {[%emt 0:00:09]} O-O {[%emt 0:00:04]} 8. h3 {[%emt 0:00:36]} d6 {[%emt 0:00:37]} 9. c3 {[%emt 0:00:13]} Nb8 {[%emt 0:00:25]} 10. d4 {[%emt 0:00:54]} Nbd7 {[%emt 0:00:06]} 11. Nbd2 {[%emt 0:00:53]} Bb7 {[%emt 0:01:17]} 12. d5 {[%emt 0:00:38]} c6 {[%emt 0:04:24]} 13. Nf1 {[%emt 0:04:10]} Nc5 {[%emt 0:01:22]} 14. dxc6 {[%emt 0:00:53]} Bxc6 {[%emt 0:00:13]} 15. Bd5 {[%emt 0:01:15]} Bxd5 {[%emt 0:02:29]} 16. exd5 {[%emt 0:00:21]} e4 {[%emt 0:00:19]} 17. Nd4 {[%emt 0:01:10]} Qd7 {[%emt 0:04:09]} 18. Ng3 {[%emt 0:02:34]} Rfe8 {[%emt 0:01:57]} 19. Ndf5 {[%emt 0:02:51]} g6 {[%emt 0:07:10]} 20. Nxe7+ {[%emt 0:00:37]} Qxe7 {[%emt 0:04:02]} 21. Bg5 {[%emt 0:00:36]} h6 {[%emt 0:09:10]} 22. Bxh6 {[%emt 0:01:59]} Qe5 {[%emt 0:00:02]} 23. Qd4 {[%emt 0:07:25]} Nd3 {[%emt 0:06:08]} 24. Re2 {[%emt 0:01:33]} g5 {[%emt 0:01:00]} 25. Bxg5 {[%emt 0:10:12]} Qxg5 {[%emt 0:00:30]} 26. Nxe4 {[%emt 0:00:48]} Rxe4 {[%emt 0:01:41]} 27. Rxe4 {[%emt 0:00:44]} Nxe4 {[%emt 0:00:19]} 28. Qxd3 {[%emt 0:02:01]} Nc5 {[%emt 0:00:22]} 29. Qf3 {[%emt 0:01:10]} Re8 {[%emt 0:00:13]} 30. Rd1 {[%emt 0:01:19]} Ne4 {[%emt 0:03:47]} 31. Rd4 {[%emt 0:04:27]} Nd2 {[%emt 0:01:22]} 32. Qd1 {[%emt 0:03:41]} Re1+ {[%emt 0:01:18]} 33. Qxe1 {[%emt 0:00:02]} Nf3+ {[%emt 0:00:02]} 34. Kf1 {[%emt 0:00:14]} Nxe1 {[%emt 0:00:04]} 35. Rg4 {[%emt 0:00:03]} Qxg4 {[%emt 0:00:25]} 36. hxg4 {[%emt 0:00:01]} Nd3 {[%emt 0:00:27]} 37. b4 {[%emt 0:00:18]} Nf4 {[%emt 0:00:20]} 38. Ke1 {[%emt 0:01:30]} Nxd5 {[%emt 0:00:23]} 39. Kd2 {[%emt 0:00:22]} Kg7 {[%emt 0:00:13]} 40. g3 {[%emt 0:01:18]} Kf6 {[%emt 0:02:12]} 41. Kd3 {[%emt 0:00:36]} Nb6 {[%emt 0:03:27]} 42. f4 {[%emt 0:01:11]} Ke6 {[%emt 0:01:50]} 43. Kd4 {[%emt 0:01:29]} f6 {[%emt 0:01:05]} 44. Ke4 {[%emt 0:01:39]} d5+ {[%emt 0:00:14]} 45. Kd4 {[%emt 0:00:19]} Kd6 {[%emt 0:00:07]} 46. g5 {[%emt 0:01:11]} fxg5 {[%emt 0:00:06]} 47. fxg5 {[%emt 0:00:08]} Nd7 {[%emt 0:00:22]} 48. Ke3 {[%emt 0:01:54]} Ne5 {[%emt 0:00:57]} 49. Kf4 {[%emt 0:00:35]} Ke6 {[%emt 0:00:21]} 50. Ke3 {[%emt 0:01:28]} Nc6 {[%emt 0:00:17]} 51. Kf4 {[%emt 0:00:41]} d4 {[%emt 0:09:31]} 52. cxd4 {[%emt 0:00:43]} Nxd4 {[%emt 0:00:53]} 53. g6 {[%emt 0:00:57]} Kf6 {[%emt 0:00:39]} 54. Ke4 {[%emt 0:00:36]} Nc2 {[%emt 0:00:03]} 55. a3 {[%emt 0:00:27]} Nxa3 {[%emt 0:00:06]} 56. Kd4 {[%emt 0:00:30]} Nc2+ {[%emt 0:00:10]} 57. Kc3 {[%emt 0:00:42]} Nxb4 {[%emt 0:00:17]} 58. Kxb4 {[%emt 0:00:11]} Kxg6 {[%emt 0:00:03]} 0-1

[Event "Coimbra Queima Fitas Open 2024"]
[Site "Coimbra"]
[Date "2024.04.26"]
[Round "3.1"]
[White "Sousa, Andre Ventura"]
[Black "Maloberti, David"]
[Result "1-0"]
[ECO "C02"]
[WhiteElo "2426"]
[BlackElo "1975"]
[Annotator "TA"]
[PlyCount "47"]
[EventDate "2024.04.23"]
[EventType "swiss"]
[EventCountry "POR"]
[SourceTitle "playchess.com"]
[Source "ChessBase"]
[SourceQuality "1"]
[TimeControl "5400+30"]

{[%evp 16,47,39,20,70,58,50,29,97,43,43,51,122,114,114,80,88,86,93,102,180,190,181,189,186,172,338,362,450,456,757,743,964,956]} 1. e4 e6 2. d4 d5 3. e5 c5 4. c3 Nc6 5. Nf3 Qb6 6. Bd3 Bd7 7. dxc5 Bxc5 8. O-O a5 9. Nbd2 a4 {Inhibits Nb3.} (9... f6 $11) 10. b4 $14 axb3 11. Nxb3 Ba3 (11... Na5 $11 {remains equal.}) 12. Rb1 (12. Bxa3 $16 Rxa3 13. Qc1) 12... Bxc1 13. Qxc1 {aiming for Nbd4.} Qa7 ({Better is} 13... Nge7 $1 $14) 14. Qg5 $36 {[%mdl 2048] White is really pushing.} Kf8 15. c4 {[#] Threatens to win with cxd5. White has more active pieces. The black rooks are passive.} h6 16. Qd2 Nge7 17. Rfc1 Rd8 (17... Be8 $16 {keeps fighting.}) 18. cxd5 $18 Nxd5 {[#]} 19. Nc5 $1 {[%cal Bb3c5,Bc5e4,Be4d6][%mdl 32]} Bc8 20. Ne4 Na5 $2 (20... Bd7 21. Nd6 b6) 21. Nd6 Bd7 22. Be4 {White is clearly winning.} Bc6 (22... b6 $142 23. Bxd5 exd5 24. Qxd5 Be6) 23. Bxd5 exd5 24. Qf4 {Weighted Error Value: White=0.09 (flawless) /Black=0.47.  Mistake:       	White=1     	Black=5      OK:         	White=5     	Black=4      Best:        	White=2     	Black=1      Strong:       	White=1     	---} 1-0

[Event "Coimbra Queima Fitas Open 2024"]
[Site "Coimbra"]
[Date "2024.04.26"]
[Round "3.2"]
[White "Gori, Andrea"]
[Black "Veiga, Jose Francisco R P N"]
[Result "0-1"]
[ECO "A48"]
[WhiteElo "1966"]
[BlackElo "2378"]
[Annotator "TA"]
[PlyCount "68"]
[EventDate "2024.04.23"]
[EventType "swiss"]
[EventCountry "POR"]
[SourceTitle "playchess.com"]
[Source "ChessBase"]
[SourceQuality "1"]
[TimeControl "5400+30"]

{[%evp 9,68,0,25,14,25,34,23,28,36,-55,15,10,14,0,0,-7,0,-4,0,-23,16,-7,-14,-106,-39,-32,-39,-96,-112,-92,-99,-118,-88,-72,-69,-139,-79,-81,-106,-75,-44,-401,-245,-259,-44,-581,-588,-534,-490,-610,-614,-1205,-1181,-2338,-1664,-2510,-2479,-4134,-3719,-3719,-3178]} 1. d4 {[%emt 0:00:06]} Nf6 {[%emt 0:08:13]} 2. Nf3 {[%emt 0:01:43]} g6 {[%emt 0:00:13]} 3. e3 {[%emt 0:01:36]} Bg7 {[%emt 0:00:17]} 4. Bd3 {[%emt 0:00:08]} O-O {[%emt 0:02:52]} 5. O-O {[%emt 0:01:19]} d6 {[%emt 0:00:32]} 6. e4 {[%emt 0:05:55]} Nc6 {[%emt 0:03:24]} 7. c3 {[%emt 0:02:52]} e5 {[%emt 0:01:35]} 8. d5 {[%emt 0:10:04] White has an edge.} Ne7 {[%emt 0:00:26][%cal Oe7d5]} 9. Ne1 {[%emt 0:00:23]} (9. c4 $14) 9... Nd7 {[%emt 0:02:05]} (9... c6 $15) 10. f3 {[%emt 0:00:27]} f5 {[%emt 0:00:45]} 11. Be3 {[%emt 0:00:25]} f4 {[%emt 0:01:07]} 12. Bf2 {[%emt 0:00:12]} g5 {[%emt 0:00:35]} 13. Nd2 {[%emt 0:03:46]} Nf6 {[%emt 0:01:04]} 14. b4 {[%emt 0:01:12]} Rf7 {[%emt 0:03:35]} 15. c4 {[%emt 0:01:43]} g4 {[%emt 0:05:15]} 16. Rc1 {[%emt 0:05:55]} (16. fxg4 $1 $11 {keeps the balance.} Nxg4 17. c5) 16... h5 {[%emt 0:11:09]} (16... g3 $1 $17 {[%cal Rg3f2]} 17. hxg3 fxg3 18. Bxg3 Ng6) 17. c5 $15 {[%emt 0:02:54]} Bh6 {[%emt 0:03:12][%cal Og4g3]} 18. Rc3 {[%emt 0:03:56] [#]} (18. Be2 $15) 18... Rg7 $1 $17 {[%emt 0:13:48]} 19. cxd6 {[%emt 0:11:56]} cxd6 {[%emt 0:00:10]} 20. Bh4 {[%emt 0:01:02]} Ng6 {[%emt 0:02:57]} 21. Bxf6 {[%emt 0:01:44]} Qxf6 {[%emt 0:00:24]} 22. Bb5 {[%emt 0:00:22]} (22. Qc2 $15 Qd8 23. a4) 22... g3 {[%emt 0:05:35]} ({Black should try} 22... Qd8 {Strongly threatening ...Qb6+.} 23. Qc2 a6) 23. Qc2 {[%emt 0:10:01]} Qd8 $36 {[%emt 0:06:57][%mdl 2048] Black is in control.} 24. Ba4 {[%emt 0:18:39]} a6 {[%emt 0:08:59] White must now prevent ...b5.} 25. b5 $2 {[%emt 0:01:14][%mdl 8192]} (25. Nc4 $1 $15 Ne7 (25... b5 26. Nxd6 Qb6+ 27. Kh1 $17) 26. b5) 25... axb5 {[%emt 0:03:02]} 26. Bxb5 {[%emt 0:00:26] [#]} Kh7 $2 {[%emt 0:00:13]} (26... h4 $1 $19 {[%cal Rh4h3] Threatens to win with ...h3.} 27. h3 Qb6+ 28. Kh1 Bxh3 29. gxh3 Qxb5) 27. hxg3 $2 {[%emt 0:03:52][%mdl 8192]} ({Only move:} 27. Nc4 $1 $15) 27... fxg3 $19 {[%emt 0:00:47][%cal Od8h4] ( -> ...Qh4!). Black is clearly winning.} 28. f4 {[%emt 0:00:24]} Bxf4 {[%emt 0:01:52]} 29. a4 {[%emt 0:01:40]} Bg4 {[%emt 0:01:17] aiming for ...Bxd2.} 30. Nc4 {[%emt 0:03:42]} Qh4 {[%emt 0:01:03][%csl Gf4,Gg3][%cal Rh4h2]} 31. Rff3 {[%emt 0:02:32]} Qh2+ {[%emt 0:00:23]} 32. Kf1 {[%emt 0:00:07]} Nh4 {[%emt 0:01:04]} 33. Nxd6 {[%emt 0:01:44]} Qh1+ {[%emt 0:00:58]} 34. Ke2 {[%emt 0:00:21]} Nxg2 {[%emt 0:00:13] Weighted Error Value: White=1.21/Black=0.31.  Loses game:     	White=2     	---        Missed win:     	---       	Black=1      Mistake:       	White=4     	Black=3      Inaccurate:     	White=1     	Black=3      OK:         	White=7     	Black=8      Best:        	White=2     	---        Strong:       	---       	Black=1} 0-1